Cogmind - Beta 16 @@@ ROGUE MODE // 2025.11.27 @ 16:32:53 Player: guru-sr Result: Self-destructed Performance ------------- Evolutions (6) 3000 Regions Visited (17) 3400 Robots Destroyed (168) 840 Value Destroyed (4079) 4079 Prototype IDs (33) 660 Alien Tech Used (0) 0 Bonus (1440) 1440 TOTAL SCORE: 13419 Bonus ------- High Alert Combat Kills 276 Follower Combat Kills 95 Met Data Miner 300 Met Warlord at Base 500 MAIN.C Attacked Warlord 500 Friendly Fire -231 Cogmind --------- Core Integrity 937/1150 Matter 295/300 Energy 129/150 System Corruption 2% Temperature Cool (75) Movement Flying (20) Location -4/Factory Parts ------- > --- POWER (2) -------- Backup Power III Micro Fission Core > --- PROPULSION (5) --- Cooled VTOL Module Cooled VTOL Module Impulse Thruster Electron Diverter Electron Diverter > --- UTILITY (10) ----- Medium Storage Unit Advanced Signal Interpreter ECM Suite Improved Hacking Suite Improved Hacking Suite Improved Hacking Suite Advanced System Shield > --- WEAPON (2) ------- Vortex Rifle > --- INVENTORY (10) --- Gravity Neutralizer Weapon Mount Stasis Canceller Transmission Jammer Vortex Rifle (35) Thermoblaster Peak State ------------ > --- POWER ------------ Backup Power III Micro Fission Core > --- PROPULSION ------- Cooled VTOL Module Cooled VTOL Module Cooled VTOL Module Electron Diverter Electron Diverter > --- UTILITY ---------- Medium Storage Unit Advanced Sensor Array Advanced Signal Interpreter Weapon Mount Improved Reaction Control System Experimental Phase Shifter Improved Hacking Suite Improved Hacking Suite Improved Hacking Suite Advanced System Shield > --- WEAPON ----------- Greatsword > --- INVENTORY -------- Backup Power III Impulse Thruster Gravity Neutralizer Stasis Canceller Transmission Jammer ECM Suite Vortex Rifle Vortex Rifle Thermoblaster [Rating: 106] Favorites ----------- Power Heavy Ion Engine Engine Heavy Ion Engine Power Core Micro Fission Core Propulsion Light Treads Treads Light Treads Flight Unit Cooled VTOL Module Utility High-capacity Storage Unit Device Seismic Detector Storage High-capacity Storage Unit Processor Improved Signal Interpreter Hackware Improved Hacking Suite Protection Medium Armor Plating Weapon Improved Assault Rifle Energy Gun Medium Laser Energy Cannon Particle Cannon Ballistic Gun Improved Assault Rifle Launcher Mini Grenade Launcher Special Weapon Mining Laser Impact Weapon Hammer Slashing Weapon Scythe Piercing Weapon Spear Special Melee Weapon Datajack Build | -11 -10 -10 -9 -9 -8 -7 -6 -6 -6 -6 -5 -5 -5 -5 -5 -4 -4 ------- Run | Yrd Mat Min Mat Sto Mat Fac Fac Low Low Dat Pro Fac Upp Upp War Pro Fac Slots Evolved 12 | . . . 2 . 2 2 2 . . . . 2 . . . . 2 Power 1 | . . . . . . . 1 . . . . . . . . . . Propulsion 3 | . . . 2 . . . . . . . . 1 . . . . . Utility 8 | . . . . . 2 2 1 . . . . 1 . . . . 2 Weapon . | . . . . . . . . . . . . . . . . . . Parts Attached 140 | 8 9 3 29 24 14 17 5 2 . . 1 9 . . 9 1 9 Power 11 | 1 2 1 3 1 . 1 . . . . . 1 . . . . 1 Engine 10 | 1 2 1 3 1 . 1 . . . . . 1 . . . . . Core 1 | . . . . . . . . . . . . . . . . . 1 Reactor . | . . . . . . . . . . . . . . . . . . Propulsion 48 | 2 1 1 12 10 7 9 . . . . . 2 . . 3 . 1 Treads 32 | 2 1 1 12 10 6 . . . . . . . . . . . . Leg . | . . . . . . . . . . . . . . . . . . Wheel . | . . . . . . . . . . . . . . . . . . Hover . | . . . . . . . . . . . . . . . . . . Flight 16 | . . . . . 1 9 . . . . . 2 . . 3 . 1 Utility 42 | 3 2 1 4 5 3 5 4 . . . . 3 . . 5 1 6 Device 15 | 2 . 1 . 2 1 1 2 . . . . . . . 4 1 1 Storage 4 | 1 1 . 1 . . 1 . . . . . . . . . . . Processor 6 | . . . . 1 . 2 . . . . . 1 . . 1 . 1 Hackware 8 | . . . . . . 1 2 . . . . 1 . . . . 4 Protection 9 | . 1 . 3 2 2 . . . . . . 1 . . . . . Artifact . | . . . . . . . . . . . . . . . . . . Weapon 39 | 2 4 . 10 8 4 2 1 2 . . 1 3 . . 1 . 1 Energy Gun 5 | 1 1 . 1 . . . . . . . . . . . 1 . 1 Energy Cannon 4 | . . . 1 1 1 . . . . . . 1 . . . . . Ballistic Gun 13 | 1 1 . 5 4 2 . . . . . . . . . . . . Ballistic Cannon . | . . . . . . . . . . . . . . . . . . Launcher 5 | . 1 . 1 2 . 1 . . . . . . . . . . . Special Weapon 2 | . 1 . . . . . 1 . . . . . . . . . . Impact Weapon 3 | . . . 1 . . . . 2 . . . . . . . . . Slashing Weapon 3 | . . . 1 . 1 . . . . . . 1 . . . . . Piercing Weapon 1 | . . . . . . . . . . . . 1 . . . . . Special Melee Weapon 3 | . . . . 1 . 1 . . . . 1 . . . . . . Unidentified Prototypes 15 | . . 1 2 3 1 1 . . . . . 1 . . 6 . . Parts Lost 17 | . 1 . 3 . . 1 1 . . . . 3 . . . 1 7 Power 3 | . . . . . . . . . . . . 2 . . . . 1 Propulsion 4 | . . . 2 . . 1 . . . . . . . . . . 1 Utility 9 | . 1 . 1 . . . 1 . . . . 1 . . . 1 4 Weapon 1 | . . . . . . . . . . . . . . . . . 1 Highest Loss Streak 3 | . 1 . 3 . . 1 1 . . . . 2 . . . 1 3 To Critical Strikes 1 | . . . . . . . . . . . . . . . . . 1 Average Backups 17 | 4 13 19 19 19 19 11 9 10 10 10 10 9 10 10 9 9 9 Power . | . 1 1 1 1 . . . . . . . . . . . . . Propulsion 4 | 1 3 7 4 4 4 1 1 1 2 2 2 1 1 1 . . . Utility 6 | . 5 7 5 5 7 5 7 7 7 7 7 6 7 7 7 6 4 Weapon 5 | 1 3 4 6 6 5 2 1 1 1 1 1 1 2 2 2 3 2 Tool/Special . | . . . . . . . . . . . . . . . . . . Unused Backups 45 | . 3 . 14 5 6 4 4 2 . . . 3 . . 1 . 3 Power 6 | . 1 . . 2 2 1 . . . . . . . . . . . Propulsion 4 | . 2 . 1 . . . . 1 . . . . . . . . . Utility 20 | . . . 6 1 3 2 2 1 . . . 3 . . . . 2 Weapon 13 | . . . 7 2 1 1 . . . . . . . . 1 . 1 Tool/Special 2 | . . . . . . . 2 . . . . . . . . . . Average Slot Usage (%) 97 | . 99 99 99 99 99 90 83 86 86 86 87 92 88 88 90 94 90 Engine 10 | . 14 14 11 11 9 7 6 6 6 6 6 7 5 5 7 11 5 Treads 30 | . 28 28 43 43 35 4 . . . . . . . . . . . Flight 5 | . . . . . . 24 26 26 26 26 26 29 29 29 29 29 26 Device 11 | . 13 11 8 8 17 15 11 13 13 13 13 11 11 11 10 12 15 Storage 10 | . 14 14 11 11 9 7 6 6 6 6 6 5 5 5 5 5 5 Processor 1 | . . . . . . 10 13 13 13 13 13 10 11 11 11 9 5 Hackware 2 | . . . . . . 5 11 13 13 13 13 16 17 17 17 17 23 Protection 2 | . . 2 1 2 9 1 . . . . . . . . . . . Energy Gun 3 | . 13 14 1 . . . . . . . . . . . . . . Energy Cannon 5 | . . . 8 10 9 1 . . . . . . . . . . . Ballistic Gun 8 | . 13 14 8 10 8 . . . . . . . . . . . . Slashing Weapon 1 | . . . 2 . . 5 6 6 6 6 6 4 5 5 4 5 3 Peak Build Rating 106 | 7 9 17 20 25 33 49 58 52 51 51 52 69 66 66 88 88 106 Average Rating 26 | 5 8 10 17 20 30 38 49 50 51 51 51 65 66 66 72 86 96 On Entrance 43 | . 7 9 11 19 23 30 49 51 51 51 51 52 66 66 66 88 84 Avg Prop Armor Cover (%) 1 | . . . . . . . . . . . . 1 1 1 1 1 . Naked Turns . | . . . . . . . . . . . . . . . . . . Heaviest Build 69 | 12 52 52 62 62 66 69 20 19 19 19 20 24 19 19 27 26 31 Greatest Support 95 | 40 40 40 80 95 89 86 28 28 20 20 20 28 25 25 33 37 35 Greatest Overweight (x) 1 | . 1 1 . . . 1 . . . . . . . . 1 . . Average Overweight (x) . | . . 1 . . . . . . . . . . . . . . . Largest Inventory Capacity 20 | 8 20 20 20 20 20 20 10 10 10 10 10 10 10 10 10 10 10 Average Capacity 17 | 7 17 20 20 20 20 12 10 10 10 10 10 10 10 10 10 10 10 Most Carried 20 | 7 20 20 20 20 20 20 10 10 10 10 10 10 10 10 10 10 10 Average Carried 17 | 4 13 19 19 19 19 11 9 9 10 10 10 9 10 10 9 9 9 Final Capacity 20 | 8 20 20 20 20 20 10 10 10 10 10 10 10 10 10 10 10 10 Final Carried 20 | 7 20 20 20 20 20 10 10 10 10 10 10 10 10 10 10 10 6 Class Distribution -------------------- 46% | Mutant 34% | Scavenger-Mutant 9% | Hacker-Scout 3% | Hacker-Sprinter Dominant Class ---------------- Mutant | -10/Materials Mutant | -10/Mines Scavenger-Mutant | -9/Materials Scavenger-Mutant | -9/Storage Mutant | -8/Materials Ninja | -7/Factory Hacker-Scout | -6/Factory Hacker-Scout | -6/Lower Caves Hacker-Scout | -6/Lower Caves Hacker-Scout | -6/Data Miner Hacker-Scout | -5/Proximity Caves Hacker-Scout | -5/Factory Hacker-Scout | -5/Upper Caves Hacker-Scout | -5/Upper Caves Hacker-Scout | -5/Warlord Hacker-Scout | -4/Proximity Caves Hacker-Sprinter | -4/Factory Resources | -11 -10 -10 -9 -9 -8 -7 -6 -6 -6 -6 -5 -5 -5 -5 -5 -4 -4 ----------- Run | Yrd Mat Min Mat Sto Mat Fac Fac Low Low Dat Pro Fac Upp Upp War Pro Fac Matter Collected 5062 | 297 324 153 1416 1511 450 155 279 40 . . 10 75 117 5 10 49 171 Remotely . | . . . . . . . . . . . . . . . . . . Salvage Created 5999 | 133 391 246 1576 2130 818 175 160 . . . 5 . 136 . . . 229 Parts 348 | 12 27 13 107 109 48 5 9 . . . 1 . 3 . . . 14 Haulers Intercepted 18 | . 2 . 6 6 4 . . . . . . . . . . . . Recyclers Shooed 5 | . 1 . 1 3 . . . . . . . . . . . . . Parts Field Recycled . | . . . . . . . . . . . . . . . . . . Retrieved Matter . | . . . . . . . . . . . . . . . . . . Parts Self-Destructed 1 | . . . . . . . . . . . 1 . . . . . . Prevented 1 | . . . . . . . . . 1 . . . . . . . . Parts Restored . | . . . . . . . . . . . . . . . . . . Kills | -11 -10 -10 -9 -9 -8 -7 -6 -6 -6 -6 -5 -5 -5 -5 -5 -4 -4 ------- Run | Yrd Mat Min Mat Sto Mat Fac Fac Low Low Dat Pro Fac Upp Upp War Pro Fac Combat Hostiles Destroyed 100 | . 10 2 35 36 13 3 . . . . 1 . . . . . . Melee 1 | . . . . . . . . . . . 1 . . . . . . Guns 50 | . 8 2 24 9 6 1 . . . . . . . . . . . Cannons 26 | . . . 5 14 7 . . . . . . . . . . . . AOE 23 | . 2 . 6 13 . 2 . . . . . . . . . . . Classes Destroyed 15 | 2 4 1 6 1 . . . . . . 1 . . . . . . Worker 4 | . . . 2 1 1 . . . . . . . . . . . . Builder 6 | . . . 1 1 . . 1 . . . . . . . . . 3 Tunneler 4 | 3 . . . 1 . . . . . . . . . . . . . Hauler 18 | . 2 . 6 6 4 . . . . . . . . . . . . Recycler 8 | 1 . 1 . 5 1 . . . . . . . . . . . . Operator 7 | . . . 1 . 2 2 1 . . . . . . . . . 1 Drone 1 | . . . . . . . . . . . 1 . . . . . . Watcher 18 | . 2 . 5 1 3 1 3 . . . . . . . . . 3 Swarmer 26 | . 6 . 13 . 7 . . . . . . . . . . . . Grunt 44 | . 4 2 10 23 2 3 . . . . . . . . . . . Brawler 4 | . . . 1 3 . . . . . . . . . . . . . Duelist 2 | . . . 1 1 . . . . . . . . . . . . . Protector 1 | . . . . 1 . . . . . . . . . . . . . Sentry 23 | . . . 10 9 4 . . . . . . . . . . . . Zionite 1 | . . 1 . . . . . . . . . . . . . . . Thug 1 | . . 1 . . . . . . . . . . . . . . . Best Kill Streak 10 | 3 4 3 10 7 3 3 2 . . . 1 . . . . . 3 Combat Bots Only 9 | . 4 2 9 5 3 3 . . . . 1 . . . . . . Max Kills in Single Turn 4 | 1 2 1 3 4 1 1 1 . . . 1 . . . . . 1 Gunslinging 1 | . . . 1 . . . . . . . . . . . . . . Exploded 4 | . 1 . 3 4 . 1 . . . . . . . . . . . Melee 1 | . . . . . . . . . . . 1 . . . . . . Uniques/NPCs Destroyed . | . . . . . . . . . . . . . . . . . . Combat | -11 -10 -10 -9 -9 -8 -7 -6 -6 -6 -6 -5 -5 -5 -5 -5 -4 -4 -------- Run | Yrd Mat Min Mat Sto Mat Fac Fac Low Low Dat Pro Fac Upp Upp War Pro Fac Hostile Shots Fired 581 | . 47 6 196 85 53 35 9 . . . . . . . . 16 134 Missed 213 | . 8 1 52 17 14 11 7 . . . . . . . . 10 93 Hits 368 | . 39 5 144 68 39 24 2 . . . . . . . . 6 41 Melee 2 | . . . 2 . . . . . . . . . . . . . . Projectile 366 | . 39 5 142 68 39 24 2 . . . . . . . . 6 41 Critical Strikes 12 | . . . 6 1 1 1 . . . . . . . . . . 3 Damage Taken 5622 | . 399 69 1892 1074 463 522 52 . . . . 335 . . . 105 711 Core 899 | . 45 27 207 103 32 160 6 . . . . 106 . . . . 213 Absorbed by Shields . | . . . . . . . . . . . . . . . . . . Regen/Repaired (Parts) 730 | . 209 . 313 150 . . 25 . . . . . . . 33 . . Core Remaining (%) 78 | 100 . 71 . 22 94 77 . . . . 99 . . . . 89 . Volleys Fired 346 | 17 39 9 103 106 56 12 2 . . . . 2 . . . . . Largest 2 | 2 2 2 2 2 2 2 1 . . . . 1 . . . . . Hottest 101 | 70 100 70 101 98 96 96 5 . . . . 90 . . . . . Shots Fired 652 | 34 74 18 195 202 104 21 2 . . . . 2 . . . . . Gun 441 | 34 68 18 155 102 55 9 . . . . . . . . . . . Cannon 186 | . . . 36 90 49 9 . . . . . 2 . . . . . Launcher 19 | . 2 . 4 10 . 3 . . . . . . . . . . . Special 6 | . 4 . . . . . 2 . . . . . . . . . . Kinetic 348 | 17 33 9 123 102 55 9 . . . . . . . . . . . Thermal 283 | 17 39 9 68 90 49 9 . . . . . 2 . . . . . Explosive 19 | . 2 . 4 10 . 3 . . . . . . . . . . . Electromagnetic . | . . . . . . . . . . . . . . . . . . Robot Hit Streak 24 | 16 16 19 24 18 10 7 2 . . . . . . . . . . Robot Miss Streak 7 | 5 3 . 7 5 4 4 1 . . . . . . . . . . Penetration Max 1 | . . . . . . 1 . . . . . . . . . . . Secondary Targets 4 | . . . 4 . . . . . . . . . . . . . . Max Gunslinging Chain 1 | . . . 1 . . . . . . . . . . . . . . Shots Hit Robots 466 | 25 47 17 140 140 55 16 10 . . . 3 2 2 . . . 9 Core Hits 241 | 6 26 12 67 79 30 8 3 . . . 1 . 2 . . . 7 Critical Kills 3 | . . . 2 . 1 . . . . . . . . . . . . Critical Parts Destroyed 1 | . 1 . . . . . . . . . . . . . . . . Critical Strikes 6 | . 2 . 3 . 1 . . . . . . . . . . . . Burn 2 | . 1 . 1 . . . . . . . . . . . . . . Meltdown 1 | . . . . . 1 . . . . . . . . . . . . Destroy 3 | . 1 . 2 . . . . . . . . . . . . . . Melee Attacks 132 | . . . 26 4 11 16 27 . . . 7 21 3 1 . . 16 Impact 11 | . . . 11 . . . . . . . . . . . . . . Slashing 120 | . . . 15 4 11 16 27 . . . 7 20 3 1 . . 16 Piercing . | . . . . . . . . . . . . . . . . . . Sneak Attacks 6 | . . . . . . 1 1 . . . . 1 . . . . 3 Combat Hostiles . | . . . . . . . . . . . . . . . . . . Follow-up Attacks . | . . . . . . . . . . . . . . . . . . Damage Inflicted 11422 | 268 642 230 2935 4003 1183 654 409 . . . 97 55 170 . . . 776 Guns 4542 | 268 525 228 1785 1134 477 125 . . . . . . . . . . . Cannons 2695 | . . . 448 1429 695 123 . . . . . . . . . . . Explosions 2280 | . 117 . 630 1364 . 169 . . . . . . . . . . . Melee 1809 | . . . 65 . . 237 409 . . . 97 55 170 . . . 776 Ramming 96 | . . 2 7 76 11 . . . . . . . . . . . . Kinetic 3480 | 79 188 115 1362 1134 477 125 . . . . . . . . . . . Thermal 3943 | 189 337 113 1057 1429 695 123 . . . . . . . . . . . Explosive 2094 | . 117 . 444 1364 . 169 . . . . . . . . . . . Electromagnetic . | . . . . . . . . . . . . . . . . . . Impact . | . . . . . . . . . . . . . . . . . . Slashing 1809 | . . . 65 . . 237 409 . . . 97 55 170 . . . 776 Piercing . | . . . . . . . . . . . . . . . . . . Highest Corruption 4 | . . . . . . 1 3 3 3 3 3 4 4 4 4 . 2 Average Corruption 2 | . . . . . . 1 1 3 3 3 3 3 4 4 4 . 1 Corruption Purged . | . . . . . . . . . . . . . . . . . . Corruption Blocked . | . . . . . . . . . . . . . . . . . . Effects 24 | . . . . . . . 5 . 1 . . 5 3 4 2 . 4 Message Errors 4 | . . . . . . . 1 . . . . . 2 . . . 1 Matter Fused 9 | . . . . . . . 2 . . . . 3 1 1 1 . 1 Heat Flow Errors 4 | . . . . . . . . . . . . 1 . 2 . . 1 Energy Discharges 4 | . . . . . . . 2 . . . . . . . 1 . 1 Data Loss (minor) 3 | . . . . . . . . . 1 . . 1 . 1 . . . Overload Shots 1 | . . . . . . . . . . . . 1 . . . . . Overflow Damage 565 | . . . 164 27 12 115 107 . . . 5 20 . . . . 115 Projectiles 17 | . . . . 5 12 . . . . . . . . . . . . Explosions 176 | . . . 160 16 . . . . . . . . . . . . . Melee 372 | . . . 4 6 . 115 107 . . . 5 20 . . . . 115 Knockbacks 2 | . . . 1 1 . . . . . . . . . . . . . Impact 2 | . . . 1 1 . . . . . . . . . . . . . Kinetic . | . . . . . . . . . . . . . . . . . . Secondary . | . . . . . . . . . . . . . . . . . . Self-Inflicted Damage 270 | . . . 29 208 . 33 . . . . . . . . . . . Shots 14 | . . . 1 11 . 2 . . . . . . . . . . . Rammed 10 | . 1 1 1 6 1 . . . . . . . . . . . . Targets Rammed 14 | . 1 1 1 8 3 . . . . . . . . . . . . Kicked . | . . . . . . . . . . . . . . . . . . Crushed 4 | . . . . 2 2 . . . . . . . . . . . . Highest Temperature 324 | 182 163 102 318 318 150 324 29 . . . . 108 . 227 10 130 135 Average Temperature 75 | 98 48 40 111 65 45 150 22 . . . . 29 . 89 4 85 38 Received Heat Transfer 1536 | . 117 39 660 399 126 162 6 . . . . . . . . . 27 Effects 7 | . . . 4 . . 3 . . . . . . . . . . . Shutdowns 1 | . . . 1 . . . . . . . . . . . . . . Energy Bleed 1 | . . . . . . 1 . . . . . . . . . . . Interference 5 | . . . 3 . . 2 . . . . . . . . . . . Siege Activations . | . . . . . . . . . . . . . . . . . . Martial Activations . | . . . . . . . . . . . . . . . . . . Shielding Activations . | . . . . . . . . . . . . . . . . . . Robots Disrupted . | . . . . . . . . . . . . . . . . . . Combat Hostiles . | . . . . . . . . . . . . . . . . . . Robots Corrupted 1 | . . . . 1 . . . . . . . . . . . . . Combat Hostiles . | . . . . . . . . . . . . . . . . . . Parts Fried 3 | . . . . 3 . . . . . . . . . . . . . Impact Corruptions 1 | . . . . 1 . . . . . . . . . . . . . Robots Melted 1 | . . . . . 1 . . . . . . . . . . . . Combat Hostiles . | . . . . . . . . . . . . . . . . . . Parts Melted 14 | . 2 . 5 3 4 . . . . . . . . . . . . Heat Transferred 7789 | 555 1036 333 2024 2435 1184 222 . . . . . . . . . . . Parts Sabotaged . | . . . . . . . . . . . . . . . . . . Parts Stolen . | . . . . . . . . . . . . . . . . . . Parts Stripped . | . . . . . . . . . . . . . . . . . . Power Chain Reactions . | . . . . . . . . . . . . . . . . . . Alert | -11 -10 -10 -9 -9 -8 -7 -6 -6 -6 -6 -5 -5 -5 -5 -5 -4 -4 ------- Run | Yrd Mat Min Mat Sto Mat Fac Fac Low Low Dat Pro Fac Upp Upp War Pro Fac Maximum Alert Level 3 | . . . 2 3 2 . . . . . . 1 . . . . . Low Security (%) 52 | 100 100 100 50 . 12 100 100 . . . . 47 . . . . 100 Level 1 30 | . . . 30 46 74 . . . . . . 52 . . . . . Level 2 12 | . . . 19 28 12 . . . . . . . . . . . . Level 3 4 | . . . . 25 . . . . . . . . . . . . . Level 4 . | . . . . . . . . . . . . . . . . . . Level 5 . | . . . . . . . . . . . . . . . . . . High Security . | . . . . . . . . . . . . . . . . . . Max Security . | . . . . . . . . . . . . . . . . . . Peak Influence 952 | 10 96 55 625 952 416 160 82 . . . . 336 . . . . 68 Initial 388 | . . 17 . 259 388 81 30 . . . . 300 . . . . 2 Average 219 | . 15 2 229 519 293 101 29 . . . . 221 . . . . 16 Influence Increases 4982 | 20 397 55 1288 1525 597 229 169 . . . 5 484 5 . . 15 193 Destroy 0b10 Robot/C 2020 | . 200 40 700 760 260 60 . . . . . . . . . . . Destroy 0b10 Robot/NC 345 | 20 20 5 75 85 55 15 25 . . . 5 . 5 . . . 35 Destroy Leader 544 | . 48 10 202 186 74 12 6 . . . . . . . . . 6 Allied During Kill 39 | . . . . 39 . . . . . . . . . . . . . Successful Hack 410 | . 50 . 70 60 15 32 52 . . . . 90 . . . . 41 Select Force Hacks 210 | . 60 . 60 60 . 30 . . . . . . . . . . . Disable Machine 285 | . . . 45 90 45 30 30 . . . . 30 . . . . 15 Destroy Structure 334 | . 19 . 76 140 13 35 11 . . . . 34 . . . . 6 Advance Influence 300 | . . . . . . . . . . . . 300 . . . . . Partial Spotted 135 | . . . . 15 . 15 45 . . . . 30 . . . . 30 Lose Combat Pursuer 360 | . . . 60 90 135 . . . . . . . . . . 15 60 Influence Decreases 4982 | 20 352 100 674 1219 1336 348 229 2 . . 5 392 92 5 . 10 198 Entered New Map 1089 | . . 28 . 355 532 100 32 2 . . . . 35 2 . . 3 Time Decay 3295 | 20 342 72 622 684 644 238 187 . . . 5 262 57 3 . 10 149 Search Patrol Dispatched 100 | . . . . . . . . . . . . 100 . . . . . Lost Part 136 | . 10 . 30 . . 10 10 . . . . 30 . . . . 46 Lost Ally 190 | . . . . 180 10 . . . . . . . . . . . . Purge Threat 172 | . . . 22 . 150 . . . . . . . . . . . . Squads Dispatched 28 | . 2 . 3 6 1 5 1 . . . . 5 . . . . 5 Investigation 14 | . 2 . 2 2 . 2 1 . . . . 2 . . . . 3 Extermination 4 | . . . . . . 1 . . . . . 2 . . . . 1 Reinforcement 7 | . . . 1 1 1 2 . . . . . 1 . . . . 1 Assault 3 | . . . . 3 . . . . . . . . . . . . . Garrison . | . . . . . . . . . . . . . . . . . . Intercept . | . . . . . . . . . . . . . . . . . . Searches Triggered 1 | . . . . . . . . . . . . 1 . . . . . Data Miner Redirects 2 | . . . . . . . . . . . . 1 . . . . 1 Construction Impeded 1 | . . . . . . . . . . . . . . . . . 1 Haulers Reinforced . | . . . . . . . . . . . . . . . . . . Active Scanning Responses . | . . . . . . . . . . . . . . . . . . Cargo Convoy Interrupts . | . . . . . . . . . . . . . . . . . . Stealth | -11 -10 -10 -9 -9 -8 -7 -6 -6 -6 -6 -5 -5 -5 -5 -5 -4 -4 --------- Run | Yrd Mat Min Mat Sto Mat Fac Fac Low Low Dat Pro Fac Upp Upp War Pro Fac Distress Signals 12 | . 1 . 4 2 2 . . . . . . . . . . . 3 Communications Jammed 3 | . . . . . . 3 . . . . . . . . . . . Distress Signals 1 | . . . . . . 1 . . . . . . . . . . . Times Spotted 254 | . 22 2 44 55 30 13 5 3 . . 2 4 . 1 4 5 64 Peak Tracking Total 18 | . 5 2 6 8 4 7 2 3 . . 2 3 . 1 8 5 18 Tactical Retreats 25 | . . . 3 5 5 1 . . . . . . . 1 . 1 9 ECM-based Alert Blocks 36 | . . . . . . 1 . . . . . . . . . . 35 Traps | -11 -10 -10 -9 -9 -8 -7 -6 -6 -6 -6 -5 -5 -5 -5 -5 -4 -4 ------- Run | Yrd Mat Min Mat Sto Mat Fac Fac Low Low Dat Pro Fac Upp Upp War Pro Fac Traps Triggered 10 | . . . . . 2 3 1 . . . . 4 . . . . . Indirectly . | . . . . . . . . . . . . . . . . . . Trap Hack Attempts . | . . . . . . . . . . . . . . . . . . Triggered . | . . . . . . . . . . . . . . . . . . Disarmed . | . . . . . . . . . . . . . . . . . . Reprogrammed . | . . . . . . . . . . . . . . . . . . Reused . | . . . . . . . . . . . . . . . . . . Traps Extracted . | . . . . . . . . . . . . . . . . . . Installed . | . . . . . . . . . . . . . . . . . . Triggered . | . . . . . . . . . . . . . . . . . . Machines | -11 -10 -10 -9 -9 -8 -7 -6 -6 -6 -6 -5 -5 -5 -5 -5 -4 -4 ---------- Run | Yrd Mat Min Mat Sto Mat Fac Fac Low Low Dat Pro Fac Upp Upp War Pro Fac Machines Disabled 19 | . . . 3 6 3 2 2 . . . . 2 . . . . 1 Max in Single Turn 2 | . . . 2 1 1 1 1 . . . . 1 . . . . 1 Garrison Access 3 | . . . . 1 . . 1 . . . . . . . . . 1 Machines Repaired . | . . . . . . . . . . . . . . . . . . Machines Dismantled . | . . . . . . . . . . . . . . . . . . Machines Sabotaged . | . . . . . . . . . . . . . . . . . . Overloaded Fab Kills . | . . . . . . . . . . . . . . . . . . Hacking | -11 -10 -10 -9 -9 -8 -7 -6 -6 -6 -6 -5 -5 -5 -5 -5 -4 -4 --------- Run | Yrd Mat Min Mat Sto Mat Fac Fac Low Low Dat Pro Fac Upp Upp War Pro Fac Machines Accessed 108 | . 11 1 16 16 9 9 13 1 . 4 1 12 . . 3 . 12 Terminals 61 | . 8 1 11 12 8 1 6 . . . 1 7 . . . . 6 Fabricators 9 | . . . . . . 3 1 . . . . 2 . . . . 3 Repair Stations 7 | . 1 . 2 1 . . 2 . . . . 1 . . . . . Recycling Units 12 | . 2 . 2 2 . 1 2 . . . . 1 . . . . 2 Scanalyzers 6 | . . . 1 . 1 2 1 . . . . 1 . . . . . Garrison Access 5 | . . . . 1 . 2 1 . . . . . . . . . 1 Total Hacks 341 | . 36 2 62 43 26 20 37 1 . 29 1 45 . . 4 . 35 Successful 229 | . 26 1 44 25 12 8 24 1 . 29 1 31 . . 4 . 23 Failed 111 | . 10 1 17 18 14 12 13 . . . . 14 . . . . 12 Catastrophic 17 | . 1 . 3 2 4 1 2 . . . . 3 . . . . 1 Database Lockouts 1 | . . . 1 . . . . . . . . . . . . . . Manual 158 | . 26 2 35 25 23 3 13 . . . . 14 . . 2 . 15 Terminals 191 | . 28 2 46 31 24 2 16 . . . 1 21 . . . . 20 Fabricators 25 | . . . . . . 7 2 . . . . 6 . . . . 10 Repair Stations 25 | . 4 . 10 5 . . 3 . . . . 3 . . . . . Recycling Units 26 | . 4 . 5 4 . 1 6 . . . . 2 . . . . 4 Scanalyzers 32 | . . . 1 . 2 7 9 . . . . 13 . . . . . Garrison Access 8 | . . . . 3 . 3 1 . . . . . . . . . 1 Terminal Hacks 94 | . 10 1 16 10 3 . 4 1 . 29 1 7 . . 4 . 8 Record 14 | . . . . . . . . . . 11 1 . . . 2 . . Part Schematic 20 | . . 1 . 2 2 . 2 . . 10 . 1 . . . . 2 Robot Schematic 6 | . 1 . . . . . . . . 5 . . . . . . . Robot Analysis 8 | . 7 . 1 . . . . . . . . . . . . . . Prototype ID Bank 8 | . 1 . 2 1 . . . . . 3 . 1 . . . . . Open Door 7 | . . . . 4 . . . 1 . . . . . . 2 . . Branch Access Points 4 | . . . 1 . . . 1 . . . . 1 . . . . 1 Emergency Access Points 2 | . . . 1 . . . . . . . . . . . . . 1 Machine Index 1 | . . . . . . . . . . . . . . . . . 1 Terminal Index 3 | . . . . 1 . . 1 . . . . 1 . . . . . Repair Station Index 1 | . . . . . . . . . . . . 1 . . . . . Alert Level 1 | . . . . 1 . . . . . . . . . . . . . Unreport Threat 2 | . . . 1 . 1 . . . . . . . . . . . . Locate Traps 9 | . 1 . 5 1 . . . . . . . . . . . . 2 Recall Investigation 1 | . . . . . . . . . . . . 1 . . . . . Recall Extermination 1 | . . . . . . . . . . . . 1 . . . . . Recall Assault 1 | . . . . . . . . . . . . . . . . . 1 Hauler Manifests 1 | . . . 1 . . . . . . . . . . . . . . Zone Layout 4 | . . . 4 . . . . . . . . . . . . . . Fabricator Hacks 15 | . . . . . . 3 . . . . . 5 . . . . 7 Network Status 3 | . . . . . . 1 . . . . . 1 . . . . 1 Load Schematic 6 | . . . . . . 1 . . . . . 2 . . . . 3 Build 6 | . . . . . . 1 . . . . . 2 . . . . 3 Repair Station Hacks 21 | . 4 . 10 4 . . 2 . . . . 1 . . . . . Scan Component 10 | . 2 . 5 2 . . 1 . . . . . . . . . . Repair 10 | . 2 . 5 2 . . 1 . . . . . . . . . . Refit 1 | . . . . . . . . . . . . 1 . . . . . Recycling Unit Hacks 12 | . 2 . 1 1 . . 4 . . . . 2 . . . . 2 Process 2 | . . . . . . . 2 . . . . . . . . . . Report Inventory 5 | . 2 . 1 1 . . . . . . . 1 . . . . . Retrieve Matter 2 | . . . . . . . 2 . . . . . . . . . . Retrieve Components 3 | . . . . . . . . . . . . 1 . . . . 2 Scanalyzer 27 | . . . 1 . 1 3 9 . . . . 13 . . . . . Insert Component 10 | . . . . . . 1 3 . . . . 6 . . . . . Analyze 13 | . . . . . . 1 5 . . . . 7 . . . . . Retrieve Study 4 | . . . 1 . 1 1 1 . . . . . . . . . . Garrison Access Hacks 3 | . . . . 1 . . 1 . . . . . . . . . 1 Seal Access 3 | . . . . 1 . . 1 . . . . . . . . . 1 Unauthorized Hacks 57 | . 10 . 16 9 8 2 4 . . . . 3 . . . . 5 Terminals 48 | . 8 . 14 7 8 1 4 . . . . 3 . . . . 3 Assimilate 1 | . . . 1 . . . . . . . . . . . . . . Botnet 15 | . 2 . 2 2 2 1 2 . . . . 2 . . . . 2 Operators 6 | . 1 . 1 . 1 . 1 . . . . 1 . . . . 1 Skim 26 | . 5 . 10 5 5 . 1 . . . . . . . . . . Fabricators 2 | . . . . . . . . . . . . . . . . . 2 Prioritize 2 | . . . . . . . . . . . . . . . . . 2 Repair Stations . | . . . . . . . . . . . . . . . . . . Recycling Units 7 | . 2 . 2 2 . 1 . . . . . . . . . . . Tunnel 7 | . 2 . 2 2 . 1 . . . . . . . . . . . Scanalyzers . | . . . . . . . . . . . . . . . . . . Garrison Access . | . . . . . . . . . . . . . . . . . . Data Cores Recovered 2 | . . . . . . . 1 . . . . . . . . . 1 Used . | . . . . . . . . . . . . . . . . . . Hacking Detections 87 | . 9 1 14 12 9 8 11 . . . 1 12 . . . . 10 Full Trace Events 7 | . . . . . . 1 1 . . . . 2 . . . . 3 Feedback Events . | . . . . . . . . . . . . . . . . . . Feedback Blocked . | . . . . . . . . . . . . . . . . . . Robot Schematics Acquired 6 | . 1 . . . . . . . . 5 . . . . . . . Robots Built . | . . . . . . . . . . . . . . . . . . Authchips . | . . . . . . . . . . . . . . . . . . Time . | . . . . . . . . . . . . . . . . . . Total Robot Build Rating . | . . . . . . . . . . . . . . . . . . Part Schematics Acquired 30 | . . 1 . 2 2 1 5 . . 10 . 7 . . . . 2 Parts Built 8 | . . . . . . . . . . . . 4 . . . . 4 Authchips . | . . . . . . . . . . . . . . . . . . Time 276 | . . . . . . 73 . . . . . 123 . . . . 80 Total Part Build Rating 38 | . . . . . . . . . . . . 18 . . . . 20 Part Studies Acquired 4 | . . . 1 . 1 1 1 . . . . . . . . . . Parts Repaired 10 | . 2 . 5 2 . . 1 . . . . . . . . . . Time 369 | . 52 . 151 58 . . 108 . . . . . . . . . . Parts Recycled . | . . . . . . . . . . . . . . . . . . Recycled Matter 38 | . . . . . . . 38 . . . . . . . . . . Retrieved Matter 38 | . . . . . . . 38 . . . . . . . . . . Retrieved Components 2 | . . . . . . . . . . . . 2 . . . . . Parts Scanalyzed 10 | . . . . . . 1 3 . . . . 6 . . . . . Part Schematics Acquired 10 | . . . . . . 1 3 . . . . 6 . . . . . Parts Damaged . | . . . . . . . . . . . . . . . . . . Bothacking | -11 -10 -10 -9 -9 -8 -7 -6 -6 -6 -6 -5 -5 -5 -5 -5 -4 -4 ------------ Run | Yrd Mat Min Mat Sto Mat Fac Fac Low Low Dat Pro Fac Upp Upp War Pro Fac Used RIF Installer . | . . . . . . . . . . . . . . . . . . Robots Hacked 3 | . . . . . . . 2 . . . . 1 . . . . . Non-combat 3 | . . . . . . . 2 . . . . 1 . . . . . Combat . | . . . . . . . . . . . . . . . . . . Robot Hacks Applied 3 | . . . . . . . 2 . . . . 1 . . . . . find_fabricator 3 | . . . . . . . 2 . . . . 1 . . . . . Relay Couplers Released 2 | . . . . 2 . . . . . . . . . . . . . Machine Destruction 2 | . . . . 2 . . . . . . . . . . . . . Fabnet Peak Effective % . | . . . . . . . . . . . . . . . . . . Robots Rewired . | . . . . . . . . . . . . . . . . . . Allies Hacked . | . . . . . . . . . . . . . . . . . . Hacks Repelled . | . . . . . . . . . . . . . . . . . . Allies | -11 -10 -10 -9 -9 -8 -7 -6 -6 -6 -6 -5 -5 -5 -5 -5 -4 -4 -------- Run | Yrd Mat Min Mat Sto Mat Fac Fac Low Low Dat Pro Fac Upp Upp War Pro Fac Total Allies 13 | . . 2 1 10 . . . . . . . . . . . . . Largest Group 11 | . . 2 1 11 1 . . . . . . . . . . . . Highest-Rated Group 98 | . . 43 10 98 10 . . . . . . . . . . . . Highest-Rated Ally 31 | . . 31 10 16 10 . . . . . . . . . . . . Total Orders 9 | . . . . 9 . . . . . . . . . . . . . STAY 4 | . . . . 4 . . . . . . . . . . . . . FOLLOW 5 | . . . . 5 . . . . . . . . . . . . . Ally Attacks 53 | . . . . 53 . . . . . . . . . . . . . Total Damage 364 | . . . . 364 . . . . . . . . . . . . . Kills 4 | . . . . 4 . . . . . . . . . . . . . Allies Corrupted . | . . . . . . . . . . . . . . . . . . Allies Melted . | . . . . . . . . . . . . . . . . . . Intel | -11 -10 -10 -9 -9 -8 -7 -6 -6 -6 -6 -5 -5 -5 -5 -5 -4 -4 ------- Run | Yrd Mat Min Mat Sto Mat Fac Fac Low Low Dat Pro Fac Upp Upp War Pro Fac Active Infowar (turns) 14018 | 68 1904 1307 3384 2193 2322 512 459 73 51 24 60 568 128 173 289 61 442 Optics 2195 | . . . . . . 333 459 73 51 24 60 568 128 173 289 37 . Sensors 2271 | . . 1 . . . 425 336 73 51 24 60 568 128 173 51 61 320 Structural 1641 | . . . . . . . 357 73 51 24 60 568 128 173 207 . . Seismic 11300 | 68 1904 1306 3384 2190 2322 126 . . . . . . . . . . . T.N.C. 3 | . . . . 3 . . . . . . . . . . . . . Jamming 2473 | . . . . . 2296 177 . . . . . . . . . . . ECM 322 | . . . . . . 200 . . . . . . . . . . 122 Robot Analysis Total 8 | . 7 . 1 . . . . . . . . . . . . . . Derelict Logs Recovered 5 | . . 1 . . . . . . 1 . . . . 2 . 1 . Drone Launches . | . . . . . . . . . . . . . . . . . . Drone Recoveries . | . . . . . . . . . . . . . . . . . . Exploration | -11 -10 -10 -9 -9 -8 -7 -6 -6 -6 -6 -5 -5 -5 -5 -5 -4 -4 ------------- Run | Yrd Mat Min Mat Sto Mat Fac Fac Low Low Dat Pro Fac Upp Upp War Pro Fac Turns Passed 15828 | 192 1989 1633 4125 2726 2322 512 459 73 51 24 60 568 128 173 289 61 443 Spaces Moved 12440 | 77 792 658 1790 1205 1196 866 920 241 195 93 156 1342 246 362 887 262 1152 Core 3 | 3 . . . . . . . . . . . . . . . . . Treads 5731 | 74 792 658 1790 1205 1196 16 . . . . . . . . . . . Legs . | . . . . . . . . . . . . . . . . . . Wheels . | . . . . . . . . . . . . . . . . . . Hover . | . . . . . . . . . . . . . . . . . . Flight 6706 | . . . . . . 850 920 241 195 93 156 1342 246 362 887 262 1152 Fastest Speed 14 | 50 160 240 160 160 160 14 14 14 26 26 26 20 23 23 20 14 20 Average Speed 95 | 155 218 240 160 160 160 34 25 25 26 26 26 23 25 25 26 22 22 Slowest Speed 240 | 160 240 240 160 160 160 160 26 26 26 26 26 27 26 26 91 26 24 Overloaded Moves 173 | . . . . . . 14 6 6 . . . 24 . . 14 28 81 Propulsion Burnouts . | . . . . . . . . . . . . . . . . . . Robots Hopped 29 | . . . . . . 1 . . . . . 17 . . 1 . 10 Potential Cave-ins . | . . . . . . . . . . . . . . . . . . Cave-ins Triggered 1 | . . . . . . . 1 . . . . . . . . . . Exploration Rate (%) 57 | 6 97 101 99 96 65 26 28 42 40 78 41 28 42 67 96 51 29 Regions Visited 17 Branch Regions 10 Pre-discovered Areas 21 | . 5 . 7 3 3 1 . . . 1 . . . . . 1 . Known Exits Taken 16 | . 1 1 1 1 1 1 1 1 1 1 1 1 1 1 1 1 . Unknown Exits Taken 1 | 1 . . . . . . . . . . . . . . . . . Scrap Searched 8 | . . 1 . . . . . 2 . . 1 . 2 . . 2 . Spaces Dug 84 | . 4 . 21 4 10 11 11 . . . . 17 1 1 . . 4 Terrain Destroyed 353 | . 19 . 104 151 12 33 11 . . . . 17 1 1 . . 4 Melee 79 | . . . 21 4 10 11 11 . . . . 16 1 1 . . 4 Projectile 7 | . 4 . . . 2 . . . . . . 1 . . . . . AOE 267 | . 15 . 83 147 . 22 . . . . . . . . . . . Terrain Rammed . | . . . . . . . . . . . . . . . . . . Walls Destroyed . | . . . . . . . . . . . . . . . . . . Machines Disabled . | . . . . . . . . . . . . . . . . . . Actions | -11 -10 -10 -9 -9 -8 -7 -6 -6 -6 -6 -5 -5 -5 -5 -5 -4 -4 --------- Run | Yrd Mat Min Mat Sto Mat Fac Fac Low Low Dat Pro Fac Upp Upp War Pro Fac Total 15429 | 115 972 692 2788 1761 1482 1040 1101 252 194 92 163 1540 303 438 944 263 1289 Wait 1884 | 6 100 9 704 295 144 81 125 . . . . 153 55 76 29 . 107 Move 12367 | 76 791 657 1789 1204 1195 863 919 240 194 92 155 1307 245 361 884 261 1134 Hop 27 | . . . . . . 1 . . . . . 17 . . 1 . 8 Pick Up 126 | 8 21 3 28 16 17 6 8 2 . . . 7 . . 5 1 4 Fast Attach 63 | 6 1 2 7 4 6 4 4 4 . . 1 11 . . 9 . 4 Attach 37 | 1 1 . 4 1 1 12 3 . . . . 5 . . 1 1 7 Detach 12 | . . . . . . 5 3 . . . . 3 . . . . 1 Swap 233 | 1 10 6 89 92 24 6 1 . . . . 1 . . 1 . 2 Drop 173 | . 8 5 37 31 25 19 9 6 . . . 13 . . 14 . 6 Fire 346 | 17 39 9 103 106 56 12 2 . . . . 2 . . . . . Melee 132 | . . . 26 4 11 16 27 . . . 7 21 3 1 . . 16 Ram . | . . . . . . . . . . . . . . . . . . Kick . | . . . . . . . . . . . . . . . . . . Crush 14 | . 1 1 1 8 3 . . . . . . . . . . . . Escape Stasis 15 | . . . . . . 15 . . . . . . . . . . . Rewire . | . . . . . . . . . . . . . . . . . . Trap . | . . . . . . . . . . . . . . . . . . Miscellaneous . | . . . . . . . . . . . . . . . . . . Route ------- -11/Scrapyard -10/Materials (discovered 6 exits: *Mat x3 / *Min x2 / Sub) -10/Mines (discovered 3 exits: *Mat x2 / *Sub) -9/Materials (discovered 6 exits: *Mat x3 / *Min x2 / *Sto) -9/Storage (discovered 2 exits: *Mat / Rec) -8/Materials (discovered 3 exits: *Fac x3) -7/Factory (discovered 4 exits: *Fac x3 / Low) -6/Factory (discovered 5 exits: *Fac / *Low x2 / Ext x2) -6/Lower Caves -6/Lower Caves -6/Data Miner -5/Proximity Caves -5/Factory (discovered 3 exits: Fac / *Upp x2) -5/Upper Caves -5/Upper Caves (discovered 2 exits: *Fac / *War) -5/Warlord -4/Proximity Caves -4/Factory (discovered 3 exits: *Upp x2 / Arm) History --------- Turn | Location | Event 35 | -11/Scrapyard | Discovered new exit (range 15) 193 | -11/Scrapyard | Entered Materials 308 | -10/Materials | Build established: Mutant 381 | -10/Materials | Discovered new exit (range 3) 555 | -10/Materials | Learned location of Recycling (-9) 586 | -10/Materials | Identified exit to Mines 586 | -10/Materials | Identified exit to Subcaves 608 | -10/Materials | Learned Recycling recycling unit intel 623 | -10/Materials | Learned location of 2 exits from Subcaves 624 | -10/Materials | Learned location of Mines (-10) 625 | -10/Materials | Identified exit to Materials 626 | -10/Materials | Learned 4 Recycling zone layouts 637 | -10/Materials | Learned location of 2 exits from Mines 1644 | -10/Materials | Repaired Lgt. Treads 1671 | -10/Materials | Repaired Lgt. Treads 2182 | -10/Materials | Entered Mines 2413 | -10/Mines | Found a damaged Exp. Sensor Array with a note attached 2421 | -10/Mines | Found Prototype Device 2421 | -10/Mines | Identified Exp. Sensor Array 3210 | -10/Mines | Learned Materials interactive machine intel 3604 | -10/Mines | Discovered exit to Materials (range 15) 3815 | -10/Mines | Entered Materials 3815 | -9/Materials | Evolved 2 slots: Propulsion x2 3816 | -9/Materials | Identified exit to Storage 3817 | -9/Materials | Loaded intel: 18 interactive machine locations 4143 | -9/Materials | Build established: Scavenger-Mutant 4477 | -9/Materials | Lost 3 parts (2n1u) 4658 | -9/Materials | Identified exit to Mines 4831 | -9/Materials | Discovered new exit (range 10) 5178 | -9/Materials | Central database locked down 5232 | -9/Materials | Identified exit to Materials 5277 | -9/Materials | Learned location of 1 exit from Recycling 5300 | -9/Materials | Repaired Imp. Assault Rifle 5312 | -9/Materials | Learned location of 2 exits from Materials 5337 | -9/Materials | Learned location of 3 exits from Materials 5371 | -9/Materials | Learned location of Zion (-7) 5399 | -9/Materials | Learned Storage stockpile data 5812 | -9/Materials | Build established: Mutant 5914 | -9/Materials | Destroyed 9 combat bots 6558 | -9/Materials | Build established: Scavenger-Mutant 7059 | -9/Materials | Core integrity fell below 50% 7306 | -9/Materials | Learned location of 2 exits from Materials 7450 | -9/Materials | Learned Storage trap positions 7563 | -9/Materials | Repaired Particle Cannon 7782 | -9/Materials | Repaired Rocket Launcher 7809 | -9/Materials | Repaired Lgt. Treads+ 7837 | -9/Materials | Repaired Lgt. Treads+ 7940 | -9/Materials | Entered Storage 7940 | -9/Storage | Accompanied by 1 ally 7942 | -9/Storage | Loaded intel: 24 trap records 8686 | -9/Storage | Found Prototype Launcher 8687 | -9/Storage | Identified Scatter Rocket Array 9357 | -9/Storage | Learned Materials emergency access door positions 9468 | -9/Storage | Learned 2 Materials zone layouts 9476 | -9/Storage | Repaired Med. Armor Plating 9485 | -9/Storage | Learned location of 2 exits from Materials 9512 | -9/Storage | Identified exit to Recycling 9540 | -9/Storage | First assault squad dispatched 9548 | -9/Storage | Learned Materials garrison access intel 9563 | -9/Storage | Assisted by bots powering up and referring to "LRC-V3" 9665 | -9/Storage | Lost 6 allies 9794 | -9/Storage | Lost 4 allies 10432 | -9/Storage | Build established: Mutant 10624 | -9/Storage | Repaired Lgt. Treads+ 10666 | -9/Storage | Entered Materials 10666 | -8/Materials | Accompanied by 1 ally 10666 | -8/Materials | Evolved 2 slots: Utility x2 10667 | -8/Materials | Identified exit to Factory 10670 | -8/Materials | Loaded intel: 1 garrison access location 12257 | -8/Materials | Learned location of 1 exit from Lower Caves 12325 | -8/Materials | Learned 2 Lower Caves zone layouts 12383 | -8/Materials | Learned location of 2 exits from Factory 12431 | -8/Materials | Learned Factory stockpile data 12574 | -8/Materials | Learned location of Lower Caves (-7) 12988 | -8/Materials | Entered Factory 12988 | -7/Factory | Evolved 2 slots: Utility x2 12989 | -7/Factory | Identified exit to Factory 12989 | -7/Factory | Identified exit to Lower Caves 13409 | -7/Factory | Discovered exit to Factory (range 8) 13498 | -7/Factory | Discovered exit to Factory (range 8) 13500 | -7/Factory | Entered another Factory area 13500 | -6/Factory | Evolved 2 slots: Power x1, Utility x1 13501 | -6/Factory | Identified exit to Extension 13771 | -6/Factory | Repaired Exp. Sensor Array 13784 | -6/Factory | Crushed by falling debris 13850 | -6/Factory | Identified exit to Lower Caves 13892 | -6/Factory | Discovered new exit (range 6) 13893 | -6/Factory | Identified exit to Factory 13941 | -6/Factory | Spotted B-75 Beast 13959 | -6/Factory | Entered Lower Caves 13960 | -6/Lower Caves | Identified exit to Lower Caves 14032 | -6/Lower Caves | Entered another Lower Caves area 14048 | -6/Lower Caves | Learned location of 1 exit from Factory 14061 | -6/Lower Caves | Spotted B-75 Beast 14078 | -6/Lower Caves | Discovered new exit (range 19) 14082 | -6/Lower Caves | Identified exit to Data Miner 14083 | -6/Lower Caves | Entered Data Miner 14083 | -6/Data Miner | Discovered new exit (range 6) 14087 | -6/Data Miner | Met Data Miner 14096 | -6/Data Miner | Learned location of Section 7 (-2) 14096 | -6/Data Miner | Acquired the access code to Warlord's prototype stash 14101 | -6/Data Miner | Received God Mode back door access code from Data Miner 14107 | -6/Data Miner | Identified exit to Proximity Caves 14107 | -6/Data Miner | Entered Proximity Caves 14109 | -5/Proximity Caves | Spotter reported a threat 14110 | -5/Proximity Caves | Build established: Hacker-Scout 14110 | -5/Proximity Caves | Spotter reported a threat 14166 | -5/Proximity Caves | Discovered exit to Factory (range 5) 14167 | -5/Proximity Caves | Entered Factory 14167 | -5/Factory | Evolved 2 slots: Propulsion x1, Utility x1 14168 | -5/Factory | Identified exit to Factory 14182 | -5/Factory | Identified exit to Upper Caves 14356 | -5/Factory | Fabricated Greatsword (x2) 14467 | -5/Factory | Search patrols dispatched 14593 | -5/Factory | Incoming investigation squad redirected 14667 | -5/Factory | Fabricated Weapon Mount (x2) 14735 | -5/Factory | Entered Upper Caves 14845 | -5/Upper Caves | Discovered new exit (range 11) 14849 | -5/Upper Caves | Identified exit to Upper Caves 14863 | -5/Upper Caves | Entered another Upper Caves area 14863 | -5/Upper Caves | Discovered exit to Factory (range 16) 14942 | -5/Upper Caves | Identified exit to Warlord 14953 | -5/Upper Caves | Attacked by a delusional Derelict stockpiling parts 14979 | -5/Upper Caves | Learned Factory terminal intel 15036 | -5/Upper Caves | Entered Warlord 15055 | -5/Warlord | Discovered new exit (range 8) 15081 | -5/Warlord | System corruption cleaned by Quarantine Array 15179 | -5/Warlord | Met Warlord 15194 | -5/Warlord | Warlord's base attacked by MAIN.C 15233 | -5/Warlord | Opened Warlord's prototype stash 15241 | -5/Warlord | Found Prototype Device 15241 | -5/Warlord | Identified Exp. Phase Shifter 15250 | -5/Warlord | Found Prototype Device 15250 | -5/Warlord | Identified System Purifier 15257 | -5/Warlord | Found Prototype Processor 15257 | -5/Warlord | Identified Spectral Analyzer 15290 | -5/Warlord | Found Prototype Energy Gun 15291 | -5/Warlord | Found Prototype Energy Gun 15291 | -5/Warlord | Identified Vortex Rifle (x2) 15319 | -5/Warlord | Opened side exit 15325 | -5/Warlord | Identified exit to Proximity Caves 15325 | -5/Warlord | Entered Proximity Caves 15371 | -4/Proximity Caves | Attracted the attention of an 0b10 checkpoint 15380 | -4/Proximity Caves | Discovered exit to Factory (range 8) 15381 | -4/Proximity Caves | Learned location of Testing (-3) 15386 | -4/Proximity Caves | Entered Factory 15386 | -4/Factory | Evolved 2 slots: Utility x2 15387 | -4/Factory | Loaded intel: 26 terminal locations 15401 | -4/Factory | Identified exit to Upper Caves 15401 | -4/Factory | Identified exit to Armory 15585 | -4/Factory | Incoming investigation squad redirected 15588 | -4/Factory | Fabricated Adv. System Shield? 15648 | -4/Factory | Fabricated Adv. System Shield? 15664 | -4/Factory | Build established: Hacker-Sprinter 15760 | -4/Factory | Fabricated Greatsword? 15817 | -4/Factory | Lost 3 parts (1p1n1u) 15829 | -4/Factory | Self-destructed Last Messages --------------- 15773_ Backup Power III destroyed. 15783_ U-05 Engineer destroyed. 15786_ K-01 Serf collects debris. 15786_ Exp. Phase Shifter destroyed. 15805_ System corrupted: Energy discharge (-42). 15818_ Drone sends a signal. 15822_ Slug penetrates Wall. 15822_ Penetrated by Slug. 15822_ Slug penetrates Wall. 15822_ Imp. Reaction Control System destroyed. 15822_ K-01 Serf collects debris. 15823_ Penetrated by Slug. 15823_ Slug penetrates H-77 Assassin. 15824_ Slug penetrates Wall. 15825_ Penetrated by Slug. 15827_ FNPNQO&##2D7FFAR/EM=1Y:F7 15827_ Slug penetrates Wall. 15827_ Penetrated by Slug. 15827_ Slug penetrates Wall. 15827_ Adv. System Shield destroyed. Map ----- +----------------------------------------------------+ | ????# #?????"""" #?# ! """ " | | ????# #????#"""" #?# | | ????# #????#"""" #?# ! """ " | | ????# """"""""" #????#"""" #?# """ " | | ????#!!! #????#"""" #?# ! """ " | | ????#!!! """"""""" #????# #?# | | ????#!! ##########+############+#" | | ????# """"""""" | | ????# | | ????# """"""""" | | ????# ! | | ????# %| | | ????# # """"T"""" #####"############ | | ##### ??#"""""""""""## | #??????# | | ^ ??############## #??????# | | ????????????????# """"#??????+ | | ^????????????????# """"#??????# | | ^ ^????????????????# """"#??????# | | ^^ ????????????????# """"#??????# | | ###??????????????????# """"#??????#########+# | | #????????????????????# """"#????????????????? | | #????????????????????# ^ #?????????""?????? | | #????????????????????##+#######?????????"T?????? | | #?????????????????????# #???????????????""?????? | | #?????????????????????#s#??????????????????????? | | #?????????????????????#@#??????????????????????? | | #????????????????######s#######????????????????? | | #????????????????# s #????????????????? | | #????????????????# s #????????????????? | | #?????????###????# """ """ #????????????????? | | ########### ###??# """ """ #????????????????? | | ## #??# """ """ #????????????????? | | ## """""" ] #??# #????????????????? | | ## """""" #??# ] ####?????????????? | | ##= """""" #??# g ![ + +?????????????? | | # """"" #??# [= # #?????????????? | | # #??# # #?????????????? | | " " """ #??# + +?????????????? | | # """ #??# # #?????????????? | | # """ #??###/######/### #?????????????? | | # ###### #?????????????? | | # + % % #?????????????? | | # ###### #?????????????? | | ###########/##????########### ??????????? | | #?????????# #???????????????? ???????? | | #?????????# #???????????????? !! ???????? | | #?????????# #???????????????# !! ???????? | | /#######?????# #???????????????# ???????? | | #?????# #???????????????## ???????? | | """ #?????# #????????????????? !! ????????? | +----------------------------------------------------+ Best States ------------- Heat Dissipation 43 Energy Generation 21 Energy Capacity 280 Matter Stores 300 Matter Capacity 300 Sight Range 24 Robot Scan Range 20 Terrain Scan Density 10 ECM Strength 1 Jamming Range 12 Armor Coverage 225 Phase Shifting 20 Evasion (%) 95 Targeting Accuracy 20 Recoil Reduction 4 Offensive Hacking 36 Defensive Hacking 28 Item Schematics ----------------- Med. Storage Unit | -10/Mines | Hacked Lyr. Light Armor Plating | -9/Storage | Hacked Melee Analysis Suite | -9/Storage | Hacked Imp. Flight Unit | -8/Materials | Hacked Hacking Suite | -8/Materials | Hacked Imp. VTOL Module | -7/Factory | Scanalyzed Cld. VTOL Module | -6/Factory | Scanalyzed Imp. Utility Shielding | -6/Factory | Scanalyzed Seismic Detector | -6/Factory | Scanalyzed Adv. Signal Interpreter | -6/Factory | Hacked Greatsword | -6/Factory | Hacked Combat Drone Bay | -6/Data Miner | Free Lgt. Regenerative Plating | -6/Data Miner | Free Cld. Gravmag System | -6/Data Miner | Free Prc. Matter Filter | -6/Data Miner | Free Plasma Sword | -6/Data Miner | Free Imp. Antigrav System | -6/Data Miner | Free Adv. Trap Scanner | -6/Data Miner | Free Hvy. Gauss Cannon | -6/Data Miner | Free Imp. Weapon Cycler | -6/Data Miner | Free Adv. Datajack | -6/Data Miner | Free Imp. System Shield | -5/Factory | Scanalyzed Imp. Hacking Suite | -5/Factory | Scanalyzed Hvy. Missile Launcher | -5/Factory | Scanalyzed ECM Suite | -5/Factory | Scanalyzed Gravity Neutralizer | -5/Factory | Scanalyzed Imp. Reaction Control System | -5/Factory | Scanalyzed Weapon Mount | -5/Factory | Hacked Adv. System Shield | -4/Factory | Hacked Adv. Hacking Suite | -4/Factory | Hacked Robot Schematics ------------------ M-13 Machinist | -10/Materials | Hacked G-50 Soldier | -6/Data Miner | Free E-15 Imp | -6/Data Miner | Free A-15 Conveyor | -6/Data Miner | Free L-61 Swordsman | -6/Data Miner | Free R-10 Processor | -6/Data Miner | Free Fabricated ------------ Greatsword | x2 | -5/Factory Weapon Mount | x2 | -5/Factory Adv. System Shield | x1 | -4/Factory Adv. System Shield | x1 | -4/Factory Greatsword | x2 | -4/Factory Repaired ---------- Lgt. Treads | 11% | -10/Materials Lgt. Treads | 39% | -10/Materials Imp. Assault Rifle | 38% | -9/Materials Particle Cannon | 40% | -9/Materials Rocket Launcher | 70% | -9/Materials Lgt. Treads | 40% | -9/Materials Lgt. Treads | 58% | -9/Materials Med. Armor Plating | 15% | -9/Storage Lgt. Treads | 65% | -9/Storage Exp. Sensor Array | 13% | -6/Factory Studied --------- Lgt. Treads | -9/Materials | Hacked Flight Unit | -8/Materials | Hacked Lgt. Deuterium Engine | -7/Factory | Hacked Scythe | -6/Factory | Hacked Alien Tech Used ----------------- None Achievements -------------- Deadly Force Express Service Junior Dev Party Time Watch This! Whoosh! Challenges ------------ None Game ------ Seed TractorShadingDevice Manual? 0 Play Time 04:24:20 Cumulative 68.7 hours Start 2025.11.26 @ 22:20:08 End 2025.11.27 @ 16:32:53 Sessions 3 Manual Loads 0 Difficulty Rogue Special Mode None Game No. 37 Rogue 37 Adventurer 0 Explorer 0 Win Type - Total 1 Types 1/0/0/0/0/0/0/0/0/0 Lore% 27 Gallery% 31 Achievement% 36 Wizard Run 0 Options --------- Layout 0 ASCII 0 Keyboard 0 Movement Mouse Keybinds 0 Fullscreen 1 Font 18/SmallcapsGlow Map View 76x50 Zoom Use 0% Tactical HUD 1 Map Filters NONE Filters NONE Steam 1 RUN: 835b3ec9-a339-49b4-b5ee-ee1c10bc96d8